Cogmind - Beta 15 @@@ ROGUE MODE // 2025.07.16 @ 06:38:37 Player: Carpathian Result: Self-destructed Performance ------------- Evolutions (2) 1000 Regions Visited (5) 1000 Robots Destroyed (36) 180 Value Destroyed (1042) 1042 Prototype IDs (3) 60 Alien Tech Used (0) 0 Bonus (300) 300 TOTAL SCORE: 3582 Bonus ------- Aligned with FarCom 300 Cogmind --------- Core Integrity 173/550 Matter 223/300 Energy 100/100 System Corruption 0% Temperature Cool (-91) Movement Treading (170) Location -8/Materials Parts ------- > --- POWER (1) -------- (None) > --- PROPULSION (2) --- Armored Treads > --- UTILITY (6) ------ Cryofiber Web > --- WEAPON (2) ------- (None) > --- INVENTORY (5) ---- Cargo Storage Unit Peak State ------------ > --- POWER ------------ Light Nuclear Core > --- PROPULSION ------- Armored Treads Armored Treads > --- UTILITY ---------- Cryofiber Web Small Storage Unit Targeting Computer Improved Light Armor Plating > --- WEAPON ----------- Improved Medium Laser Heavy Assault Rifle > --- INVENTORY -------- Light Treads Armored Treads Cargo Storage Unit Heavy Assault Rifle Assault Cannon Rocket Launcher [Rating: 23] Favorites ----------- Power Light Ion Engine Engine Light Ion Engine Power Core Light Nuclear Core Propulsion Light Treads Treads Light Treads Utility Small Storage Unit Device Cryofiber Web Storage Small Storage Unit Processor Targeting Computer Protection Improved Light Armor Plating Weapon Assault Rifle Energy Gun Medium Laser Ballistic Gun Assault Rifle Ballistic Cannon Assault Cannon Launcher Rocket Launcher Build | -11 -10 -10 -10 -9 -8 ------- Run | Yrd Mat Min Exi Min Mat Slots Evolved 4 | . . . . . 4 Power . | . . . . . . Propulsion . | . . . . . . Utility 4 | . . . . . 4 Weapon . | . . . . . . Parts Attached 24 | 7 . . . . 17 Power 4 | 1 . . . . 3 Engine 2 | 1 . . . . 1 Core 2 | . . . . . 2 Reactor . | . . . . . . Propulsion 5 | 2 . . . . 3 Treads 5 | 2 . . . . 3 Leg . | . . . . . . Wheel . | . . . . . . Hover . | . . . . . . Flight . | . . . . . . Utility 5 | 1 . . . . 4 Device 2 | . . . . . 2 Storage 1 | 1 . . . . . Processor 1 | . . . . . 1 Hackware . | . . . . . . Protection 1 | . . . . . 1 Artifact . | . . . . . . Weapon 10 | 3 . . . . 7 Energy Gun 2 | 1 . . . . 1 Energy Cannon . | . . . . . . Ballistic Gun 5 | 2 . . . . 3 Ballistic Cannon 2 | . . . . . 2 Launcher 1 | . . . . . 1 Special Weapon . | . . . . . . Impact Weapon . | . . . . . . Slashing Weapon . | . . . . . . Piercing Weapon . | . . . . . . Special Melee Weapon . | . . . . . . Unidentified Prototypes 1 | . . . . . 1 Parts Lost 11 | . . . . . 11 Power 2 | . . . . . 2 Propulsion 2 | . . . . . 2 Utility 3 | . . . . . 3 Weapon 4 | . . . . . 4 Highest Loss Streak 8 | . . . . . 8 To Critical Strikes . | . . . . . . Average Backups 4 | 1 3 4 4 5 5 Power . | . 1 1 1 1 . Propulsion . | . . . . . 1 Utility 1 | . 1 2 2 2 1 Weapon 1 | . 1 1 1 2 2 Tool/Special . | . . . . . . Unused Backups 3 | . . . . . 3 Power . | . . . . . . Propulsion . | . . . . . . Utility 1 | . . . . . 1 Weapon 2 | . . . . . 2 Tool/Special . | . . . . . . Average Slot Usage (%) 76 | . 85 85 85 85 69 Engine 8 | . 14 14 14 14 4 Core 2 | . . . . . 4 Treads 22 | . 28 28 28 28 17 Device 3 | . . . . . 5 Storage 11 | . 14 14 14 14 8 Processor 2 | . . . . . 4 Protection 3 | . . . . . 6 Energy Gun 10 | . 14 14 14 14 8 Ballistic Gun 11 | . 14 14 14 14 8 Peak Build Rating 23 | 6 6 6 6 6 23 Average Rating 11 | 4 6 6 6 6 17 On Entrance 5 | . 6 6 6 6 6 Naked Turns . | . . . . . . Heaviest Build 22 | 12 12 12 12 12 22 Greatest Support 40 | 40 40 40 40 40 40 Greatest Overweight (x) 1 | . . . . . 1 Average Overweight (x) . | . . . . . . Largest Inventory Capacity 8 | 8 8 8 8 8 8 Average Capacity 7 | 6 8 8 8 8 7 Most Carried 8 | 3 5 5 5 7 8 Average Carried 5 | 1 3 5 5 6 6 Final Capacity 8 | 8 8 8 8 8 5 Final Carried 7 | 2 5 5 5 7 2 Class Distribution -------------------- 91% | Mutant 8% | Skirmisher Dominant Class ---------------- Mutant | -10/Materials Mutant | -10/Mines Mutant | -10/Exiles Mutant | -9/Mines Mutant | -8/Materials Resources | -11 -10 -10 -10 -9 -8 ----------- Run | Yrd Mat Min Exi Min Mat Matter Collected 770 | 201 45 . . 69 455 Remotely . | . . . . . . Salvage Created 1255 | . 149 . . . 1106 Parts 76 | . 8 . . . 68 Haulers Intercepted 1 | . . . . . 1 Recyclers Shooed . | . . . . . . Parts Field Recycled . | . . . . . . Retrieved Matter . | . . . . . . Parts Self-Destructed . | . . . . . . Prevented . | . . . . . . Kills | -11 -10 -10 -10 -9 -8 ------- Run | Yrd Mat Min Exi Min Mat Combat Hostiles Destroyed 28 | . 3 . . . 25 Guns 22 | . 3 . . . 19 Cannons 5 | . . . . . 5 AOE 1 | . . . . . 1 Classes Destroyed 10 | . 2 . . . 8 Worker 3 | . . . . . 3 Builder 1 | . . . . . 1 Hauler 1 | . . . . . 1 Recycler 1 | . . . . . 1 Watcher 2 | . 1 . . . 1 Swarmer 9 | . . . . . 9 Grunt 11 | . 3 . . . 8 Sentry 5 | . . . . . 5 Specialist 2 | . . . . . 2 Hunter 1 | . . . . . 1 Best Kill Streak 7 | . 2 . . . 7 Combat Bots Only 7 | . 2 . . . 7 Max Kills in Single Turn 1 | . 1 . . . 1 Gunslinging . | . . . . . . Exploded 1 | . . . . . 1 Melee . | . . . . . . Uniques/NPCs Destroyed . | . . . . . . Combat | -11 -10 -10 -10 -9 -8 -------- Run | Yrd Mat Min Exi Min Mat Hostile Shots Fired 214 | . 17 . . . 197 Missed 60 | . 8 . . . 52 Hits 154 | . 9 . . . 145 Projectile 154 | . 9 . . . 145 Critical Strikes 4 | . 1 . . . 3 Damage Taken 2547 | . 128 . . . 2419 Core 377 | . . . . . 377 Absorbed by Shields . | . . . . . . Core Remaining (%) 100 | 100 . . . 100 . Volleys Fired 112 | . 15 . . . 97 Largest 2 | . 2 . . . 2 Hottest 93 | . 70 . . . 93 Shots Fired 204 | . 30 . . . 174 Gun 175 | . 30 . . . 145 Cannon 27 | . . . . . 27 Launcher 2 | . . . . . 2 Special . | . . . . . . Kinetic 118 | . 15 . . . 103 Thermal 84 | . 15 . . . 69 Explosive 2 | . . . . . 2 Electromagnetic . | . . . . . . Robot Hit Streak 23 | . 6 . . . 23 Robot Miss Streak 5 | . 2 . . . 5 Penetration Max . | . . . . . . Secondary Targets 5 | . 1 . . . 4 Max Gunslinging Chain 1 | . 1 . . . 1 Shots Hit Robots 141 | . 21 . . . 120 Core Hits 60 | . 8 . . . 52 Critical Kills . | . . . . . . Critical Parts Destroyed . | . . . . . . Critical Strikes 8 | . 1 . . . 7 Burn 6 | . 1 . . . 5 Blast 2 | . . . . . 2 Melee Attacks . | . . . . . . Impact . | . . . . . . Slashing . | . . . . . . Piercing . | . . . . . . Sneak Attacks . | . . . . . . Combat Hostiles . | . . . . . . Follow-up Attacks . | . . . . . . Damage Inflicted 2388 | . 269 . . . 2119 Guns 1909 | . 269 . . . 1640 Cannons 390 | . . . . . 390 Explosions 89 | . . . . . 89 Melee . | . . . . . . Ramming . | . . . . . . Kinetic 1353 | . 131 . . . 1222 Thermal 946 | . 138 . . . 808 Explosive 89 | . . . . . 89 Electromagnetic . | . . . . . . Impact . | . . . . . . Slashing . | . . . . . . Piercing . | . . . . . . Highest Corruption . | . . . . . . Average Corruption . | . . . . . . Corruption Purged . | . . . . . . Corruption Blocked . | . . . . . . Overload Shots . | . . . . . . Overflow Damage 9 | . . . . . 9 Projectiles . | . . . . . . Explosions 9 | . . . . . 9 Melee . | . . . . . . Knockbacks 3 | . . . . . 3 Impact . | . . . . . . Kinetic 3 | . . . . . 3 Secondary . | . . . . . . Self-Inflicted Damage 60 | . . . . . 60 Shots 2 | . . . . . 2 Rammed 1 | . . . . . 1 Targets Rammed 1 | . . . . . 1 Kicked . | . . . . . . Crushed . | . . . . . . Highest Temperature 266 | . 201 . . . 266 Average Temperature 89 | . 86 . . . 90 Received Heat Transfer 678 | . 93 . . . 585 Siege Activations . | . . . . . . Martial Activations . | . . . . . . Shielding Activations . | . . . . . . Robots Disrupted . | . . . . . . Combat Hostiles . | . . . . . . Robots Corrupted . | . . . . . . Combat Hostiles . | . . . . . . Parts Fried . | . . . . . . Impact Corruptions . | . . . . . . Robots Melted . | . . . . . . Combat Hostiles . | . . . . . . Parts Melted 4 | . . . . . 4 Heat Transferred 2590 | . 481 . . . 2109 Parts Sabotaged . | . . . . . . Parts Stolen . | . . . . . . Parts Stripped . | . . . . . . Power Chain Reactions . | . . . . . . Alert | -11 -10 -10 -10 -9 -8 ------- Run | Yrd Mat Min Exi Min Mat Maximum Alert Level 1 | . . . . . 1 Low Security (%) 86 | 100 100 100 . 100 81 Level 1 13 | . . . . . 18 Level 2 . | . . . . . . Level 3 . | . . . . . . Level 4 . | . . . . . . Level 5 . | . . . . . . High Security . | . . . . . . Max Security . | . . . . . . Peak Influence 372 | . 55 . . . 372 Initial . | . . . . . . Average 78 | . 9 . . . 105 Influence Increases 916 | . 102 . . . 814 Destroy 0b10 Robot/C 560 | . 60 . . . 500 Destroy 0b10 Robot/NC 40 | . 5 . . . 35 Destroy Leader 126 | . 22 . . . 104 Disable Machine 15 | . . . . . 15 Destroy Structure 25 | . . . . . 25 Lose Combat Pursuer 150 | . 15 . . . 135 Influence Decreases 589 | . 102 . . . 487 Time Decay 479 | . 102 . . . 377 Lost Part 110 | . . . . . 110 Squads Dispatched 7 | . 2 . . . 5 Investigation 2 | . 1 . . . 1 Extermination . | . . . . . . Reinforcement 3 | . 1 . . . 2 Assault . | . . . . . . Garrison 2 | . . . . . 2 Intercept . | . . . . . . Searches Triggered . | . . . . . . Construction Impeded . | . . . . . . Haulers Reinforced . | . . . . . . Active Scanning Responses . | . . . . . . Cargo Convoy Interrupts . | . . . . . . Stealth | -11 -10 -10 -10 -9 -8 --------- Run | Yrd Mat Min Exi Min Mat Distress Signals 2 | . . . . . 2 Communications Jammed . | . . . . . . Distress Signals . | . . . . . . Times Spotted 41 | . 6 . . . 35 Peak Tracking Total 7 | . 2 . . . 7 Tactical Retreats 6 | . 1 . . . 5 Traps | -11 -10 -10 -10 -9 -8 ------- Run | Yrd Mat Min Exi Min Mat Traps Triggered 1 | . 1 . . . . Indirectly . | . . . . . . Trap Hack Attempts . | . . . . . . Triggered . | . . . . . . Disarmed . | . . . . . . Reprogrammed . | . . . . . . Reused . | . . . . . . Traps Extracted . | . . . . . . Installed . | . . . . . . Triggered . | . . . . . . Machines | -11 -10 -10 -10 -9 -8 ---------- Run | Yrd Mat Min Exi Min Mat Machines Disabled 1 | . . . . . 1 Max in Single Turn 1 | . . . . . 1 Machines Repaired . | . . . . . . Machines Dismantled . | . . . . . . Machines Sabotaged . | . . . . . . Overloaded Fab Kills . | . . . . . . Hacking | -11 -10 -10 -10 -9 -8 --------- Run | Yrd Mat Min Exi Min Mat Machines Accessed 7 | . 1 . 4 . 2 Terminals 3 | . 1 . . . 2 Fabricators . | . . . . . . Repair Stations . | . . . . . . Recycling Units . | . . . . . . Scanalyzers . | . . . . . . Garrison Access . | . . . . . . Total Hacks 34 | . 2 . 28 . 4 Successful 30 | . 1 . 28 . 1 Failed 4 | . 1 . . . 3 Catastrophic . | . . . . . . Database Lockouts . | . . . . . . Manual . | . . . . . . Terminals 6 | . 2 . . . 4 Fabricators . | . . . . . . Repair Stations . | . . . . . . Recycling Units . | . . . . . . Scanalyzers . | . . . . . . Garrison Access . | . . . . . . Terminal Hacks 30 | . 1 . 28 . 1 Record 29 | . 1 . 28 . . Prototype ID Bank 1 | . . . . . 1 Fabricator Hacks . | . . . . . . Repair Station Hacks . | . . . . . . Recycling Unit Hacks . | . . . . . . Scanalyzer . | . . . . . . Garrison Access Hacks . | . . . . . . Unauthorized Hacks . | . . . . . . Terminals . | . . . . . . Fabricators . | . . . . . . Repair Stations . | . . . . . . Recycling Units . | . . . . . . Scanalyzers . | . . . . . . Garrison Access . | . . . . . . Data Cores Recovered . | . . . . . . Used . | . . . . . . Hacking Detections 3 | . 1 . . . 2 Full Trace Events 1 | . . . . . 1 Feedback Events . | . . . . . . Feedback Blocked . | . . . . . . Robot Schematics Acquired . | . . . . . . Robots Built . | . . . . . . Authchips . | . . . . . . Time . | . . . . . . Total Robot Build Rating . | . . . . . . Part Schematics Acquired . | . . . . . . Parts Built . | . . . . . . Authchips . | . . . . . . Time . | . . . . . . Total Part Build Rating . | . . . . . . Parts Repaired . | . . . . . . Time . | . . . . . . Parts Recycled . | . . . . . . Recycled Matter . | . . . . . . Retrieved Matter . | . . . . . . Retrieved Components . | . . . . . . Parts Scanalyzed . | . . . . . . Part Schematics Acquired . | . . . . . . Parts Damaged . | . . . . . . Bothacking | -11 -10 -10 -10 -9 -8 ------------ Run | Yrd Mat Min Exi Min Mat Used RIF Installer . | . . . . . . Robots Hacked . | . . . . . . Non-combat . | . . . . . . Combat . | . . . . . . Robot Hacks Applied . | . . . . . . Relay Couplers Released . | . . . . . . Fabnet Peak Effective % . | . . . . . . Robots Rewired . | . . . . . . Allies Hacked . | . . . . . . Hacks Repelled . | . . . . . . Allies | -11 -10 -10 -10 -9 -8 -------- Run | Yrd Mat Min Exi Min Mat Total Allies . | . . . . . . Largest Group . | . . . . . . Highest-Rated Group . | . . . . . . Highest-Rated Ally . | . . . . . . Total Orders . | . . . . . . Ally Attacks . | . . . . . . Total Damage . | . . . . . . Kills . | . . . . . . Allies Corrupted . | . . . . . . Allies Melted . | . . . . . . Intel | -11 -10 -10 -10 -9 -8 ------- Run | Yrd Mat Min Exi Min Mat Active Infowar (turns) 167 | . . . . . 167 Sensors 167 | . . . . . 167 Robot Analysis Total . | . . . . . . Derelict Logs Recovered . | . . . . . . Drone Launches . | . . . . . . Drone Recoveries . | . . . . . . Exploration | -11 -10 -10 -10 -9 -8 ------------- Run | Yrd Mat Min Exi Min Mat Turns Passed 3389 | 114 499 21 943 47 1765 Spaces Moved 1464 | 71 173 14 590 29 587 Core 17 | 13 . . . . 4 Treads 1447 | 58 173 14 590 29 583 Legs . | . . . . . . Wheels . | . . . . . . Hover . | . . . . . . Flight . | . . . . . . Fastest Speed 50 | 50 160 160 160 160 100 Average Speed 160 | 139 160 160 160 160 164 Slowest Speed 170 | 160 160 160 160 160 170 Overloaded Moves . | . . . . . . Propulsion Burnouts . | . . . . . . Robots Hopped . | . . . . . . Potential Cave-ins . | . . . . . . Cave-ins Triggered . | . . . . . . Exploration Rate (%) 29 | 5 33 5 94 10 31 Regions Visited 5 Branch Regions 3 Pre-discovered Areas 1 | . . . 1 . . Known Exits Taken . | . . . . . . Unknown Exits Taken 5 | 1 1 1 1 1 . Scrap Searched 2 | . . . . 2 . Spaces Dug . | . . . . . . Terrain Destroyed 25 | . . . . . 25 Melee . | . . . . . . Projectile 4 | . . . . . 4 AOE 21 | . . . . . 21 Terrain Rammed . | . . . . . . Walls Destroyed . | . . . . . . Machines Disabled . | . . . . . . Actions | -11 -10 -10 -10 -9 -8 --------- Run | Yrd Mat Min Exi Min Mat Total 2297 | 85 365 13 589 30 1215 Wait 661 | . 176 . . . 485 Move 1459 | 70 172 13 589 28 587 Hop . | . . . . . . Pick Up 26 | 8 2 . . 2 14 Fast Attach 1 | . . . . . 1 Attach 14 | 6 . . . . 8 Detach . | . . . . . . Swap 11 | 1 . . . . 10 Drop 12 | . . . . . 12 Fire 112 | . 15 . . . 97 Melee . | . . . . . . Ram . | . . . . . . Kick . | . . . . . . Crush 1 | . . . . . 1 Escape Stasis . | . . . . . . Rewire . | . . . . . . Trap . | . . . . . . Miscellaneous . | . . . . . . Route ------- -11/Scrapyard -10/Materials -10/Mines -10/Exiles (discovered 2 exits: [*Min x2]) -9/Mines -8/Materials History --------- Turn | Location | Event 17 | -11/Scrapyard | Discovered new exit (range 15) 115 | -11/Scrapyard | Entered Materials 306 | -10/Materials | Build established: Mutant 521 | -10/Materials | Discovered new exit (range 13) 614 | -10/Materials | Entered Mines 622 | -10/Mines | Met a Derelict bent on vengeance 624 | -10/Mines | Deemed a non-threat by the Exiles lab entrance 626 | -10/Mines | Discovered new exit (range 5) 635 | -10/Mines | Entered Exiles 659 | -10/Exiles | Discovered new exit (range 15) 696 | -10/Exiles | Met 8R-AWN 722 | -10/Exiles | Met EX-HEX 811 | -10/Exiles | Met EX-DEC 848 | -10/Exiles | Visited The Gauntlet 1183 | -10/Exiles | Met EX-BIN 1202 | -10/Exiles | Aligned with FarCom system 1203 | -10/Exiles | Given EX-Vault access code 1463 | -10/Exiles | Learned location of Zion (-7) 1562 | -10/Exiles | Discovered new exit (range 11) 1578 | -10/Exiles | Entered Mines 1602 | -9/Mines | Found DCF Scrap (15 items) 1611 | -9/Mines | Discovered new exit (range 9) 1625 | -9/Mines | Entered Materials 1625 | -8/Materials | Evolved 4 slots: Utility x4 2431 | -8/Materials | Destroyed 7 combat bots 3228 | -8/Materials | Garrison activated, responded to threat 3350 | -8/Materials | Lost 8 parts (1p2n2u3w) 3377 | -8/Materials | Garrison activated, responded to threat 3379 | -8/Materials | Core integrity fell below 50% 3390 | -8/Materials | Self-destructed Last Messages --------------- 03319_ Rocket Launcher destroyed. 03319_ Destroyed Rocket Launcher. 03319_ Knocked back. 03321_ The unstable cave ceiling collapses. 03323_ Critical hit (Burn: +37). 03325_ Knocked back. 03327_ The unstable cave ceiling collapses. 03360_ Terminal disabled. 03361_ M-13 Machinist repairs H-61 Shepherd. 03362_ G-47 Trooper destroyed. 03363_ M-13 Machinist repairs H-61 Shepherd Cooling System. 03366_ K-01 Serf collects debris. 03374_ Lgt. Nuclear Core destroyed. 03377_ K-01 Serf collects debris. 03377_ G-47 Trooper calls for garrison reinforcements. 03377_ ALERT: Activating Garrison Access M001. 03380_ K-01 Serf collects debris. 03384_ Hvy. Assault Rifle destroyed. 03384_ K-01 Serf collects debris. [Achievement: Just Browsing] Map ----- +----------------------------------------------------+ | ????????????????## ?# # #????????? | | ?????????????????# ??# # #????????? | | ?????????????????#????# # #????????? | | ??????????????????????# # #????????? | | ??????????????????????########### #????????? | | ??????????????????????# ????# #????????? | | ??????????????????????# """??# #????????? | | ????????????????? # R"??# #????????? | | ????????????????? # ""???# #????????? | | ????????????????? + ???# #????????? | | ????????????g???? # ???# #????????? | | ????????????????? # ???# #????????? | | ?????????????g???# ## ???# #????????? | | ?????????????????# ## ???# #????????? | | ?????????????????# #?# ##### #????????? | | ???????????? ## ### # # #????????? | | ???????????? "; k%! %* *##???????? | | ????????????????## = !% !![% %%=[ #???????? | | ????????????????#; % %=[ ==*%= #????????? | | ????????????????## ####### ## ###????????? | | ?????????????????# # %! #????????? | | ?????????????????# # "" """"" #????????? | | ?????????????????# g "T """"" #????????? | | ?????????????????# kg """"" #????????? | | ?????????????????#% # % H #????????? | | ?????????????????# @ ;#############????????? | | ?????????????????# ##????????????????????? | | ?????????????????# #?????????????????????? | | ?????????????????# #?????????????????????? | | ?????????????????# #?????????????????????? | | ????????????????? ?????????????????????? | | ????????????????? ?????????????????????? | | ???????????????? ????????????????????? | | ????????????????###/###????????????????????? | | ???????????????????t???????????????????????? | | ??????????????????? ???????????????????????? | | ???????????????????"???????????????????????? | | ???????????????????"???????????????????????? | | ???????????????????????????????????????????? | | ???????????????????????????????????????????? | | ???????????????????????????????????????????? | | ???????????????????????????????????????????? | | ???????????????????????????????????????????? | | ???????????????????????????????????????????? | | ???????????????????????????????????????????? | | ???????????????????????????????????????????? | | ???????????????????????????????????????????? | | ???????????????????????????????????????????? | | ???????????????????????????????????????????? | | ???????????????????????????????????????????? | +----------------------------------------------------+ Best States ------------- Heat Dissipation 31 Energy Generation 14 Energy Capacity 250 Matter Stores 300 Matter Capacity 300 Sight Range 16 Robot Scan Range 14 Terrain Scan Density 10 Base Temperature (-) 100 Armor Coverage 150 Evasion (%) 50 Targeting Accuracy 5 Recoil Reduction 2 Item Schematics ----------------- None Robot Schematics ------------------ None Fabricated ------------ Nothing Repaired ---------- Nothing Alien Tech Used ----------------- None Achievements -------------- Just Browsing Challenges ------------ None Game ------ Seed ForceSalvagingLattice Manual? 0 Play Time 00:15:51 Cumulative 34.0 hours Start 2025.07.16 @ 06:22:54 End 2025.07.16 @ 06:38:37 Sessions 1 Manual Loads 0 Difficulty Rogue Special Mode None Game No. 182 Rogue 182 Adventurer 0 Explorer 0 Win Type - Total 0 Types 0/0/0/0/0/0/0/0/0/0 Lore% 11 Gallery% 25 Achievement% 20 Wizard Run 0 Options --------- Layout 0 ASCII 0 Keyboard 0 Movement Arrows Keybinds 0 Fullscreen 2 Font 24/Cog Map View 76x50 Zoom Use 0% Tactical HUD 1 Map Filters NONE Filters NONE Steam 1 RUN: 586d4905-0cd5-4e94-8285-a6a92d15cbbf